bitfinex/quotes_BTCUSD_20241206
["timestamp","ask_amount","ask_price","bid_price","bid_amount"]
[1733528099660,0.13702951,99665.0,99664.0,0.031]
[1733528099878,0.13702951,99665.0,99664.0,0.03]
[1733528100100,0.12902951,99665.0,99664.0,0.03]
[1733528100321,0.13702951,99665.0,99664.0,0.031]
[1733528100549,0.11402951,99665.0,99664.0,0.031]
[1733528100985,0.11701248,99665.0,99664.0,0.031]
[1733528101426,0.11667426,99665.0,99664.0,0.031]
[1733528102071,0.11369129,99665.0,99664.0,0.031]
[1733528102952,0.11369129,99665.0,99664.0,0.1082]
[1733528103163,0.014,99665.0,99664.0,0.1532]
[1733528103641,0.014,99665.0,99664.0,0.2532]
[1733528104075,0.03,99666.0,99665.0,0.05]
[1733528104297,0.03,99666.0,99665.0,0.08]
[1733528104504,0.1325713,99703.0,99700.0,0.56331513]
[1733528104730,0.10002951,99701.0,99700.0,0.56331513]
[1733528104948,0.10322312,99701.0,99700.0,0.56331513]
[1733528105168,0.28322312,99701.0,99700.0,0.56331513]
[1733528105388,0.25322312,99701.0,99700.0,0.56331513]
[1733528105564,0.25020288,99701.0,99700.0,0.56331513]
[1733528106236,0.260283,99701.0,99700.0,0.56331513]
[1733528106453,0.110283,99701.0,99700.0,0.56331513]
[1733528106647,0.116283,99701.0,99700.0,0.56431513]
[1733528106905,0.110283,99701.0,99700.0,0.56331513]
[1733528107131,0.117283,99701.0,99700.0,0.56431513]
[1733528107388,0.123283,99701.0,99700.0,0.56531513]
[1733528107612,0.260283,99701.0,99700.0,0.56331513]
[1733528107816,0.260243,99701.0,99700.0,0.56331513]
[1733528108047,0.265243,99701.0,99700.0,0.56331513]
[1733528108702,0.260243,99701.0,99700.0,0.56331513]
[1733528108908,0.267243,99701.0,99700.0,0.56431513]
[1733528109320,0.260243,99701.0,99700.0,0.56331513]
[1733528109523,0.267243,99701.0,99700.0,0.56431513]
[1733528109952,0.260243,99701.0,99700.0,0.56331513]
[1733528110183,0.267243,99701.0,99700.0,0.56431513]
[1733528110621,0.272243,99701.0,99700.0,0.56431513]
[1733528111089,0.267243,99701.0,99700.0,0.56431513]
[1733528111303,0.273243,99701.0,99700.0,0.56531513]
[1733528111759,0.267243,99701.0,99700.0,0.56431513]
[1733528111986,0.260243,99701.0,99700.0,0.56331513]
[1733528112424,0.267243,99701.0,99700.0,0.56431513]
[1733528112634,0.260243,99701.0,99700.0,0.56331513]
[1733528113078,0.275243,99701.0,99700.0,0.56531513]
[1733528113292,0.268243,99701.0,99700.0,0.56431513]
[1733528113510,0.275243,99701.0,99700.0,0.56531513]
[1733528113730,0.267243,99701.0,99700.0,0.56431513]
[1733528113961,0.269243,99701.0,99700.0,0.56431513]
[1733528114396,0.260243,99701.0,99700.0,0.56331513]
[1733528114846,0.269243,99701.0,99700.0,0.56431513]
[1733528115289,0.126243,99701.0,99700.0,0.06437879]
[1733528115528,0.119243,99701.0,99700.0,0.06337879]
[1733528115766,0.119243,99701.0,99700.0,0.11007879]
[1733528115984,0.01617337,99701.0,99700.0,0.18607879]
[1733528116205,0.10020288,99701.0,99700.0,0.18407879]
[1733528116437,0.00017337,99701.0,99700.0,0.18407879]
[1733528116657,0.00717337,99701.0,99700.0,0.18507879]
[1733528116887,0.00017337,99701.0,99700.0,0.18407879]
[1733528117179,0.01617337,99701.0,99700.0,0.18607879]
[1733528117625,0.00717337,99701.0,99700.0,0.18507879]
[1733528118038,0.01217337,99701.0,99700.0,0.18507879]
[1733528118860,0.00517337,99701.0,99700.0,0.18407879]
[1733528119067,0.00517337,99701.0,99700.0,0.23407879]
[1733528119275,0.00017337,99701.0,99700.0,0.28407879]
[1733528119725,0.00817337,99701.0,99700.0,0.28507879]
[1733528120388,0.08824729,99747.0,99710.0,0.08]
[1733528120635,0.10002951,99736.0,99715.0,0.03]
[1733528120844,0.10002951,99736.0,99722.0,0.03]
[1733528121050,0.10002951,99736.0,99725.0,0.03]
[1733528121271,0.10002951,99736.0,99727.0,0.03]
[1733528122742,0.10402951,99736.0,99727.0,0.031]
[1733528122960,0.10002951,99736.0,99727.0,0.03]
[1733528123206,0.10102951,99736.0,99727.0,0.03]
[1733528123452,0.0017364,99740.0,99735.0,0.05]
[1733528123670,0.0017364,99740.0,99736.0,0.08]
[1733528124113,0.0017364,99740.0,99739.0,0.05]
[1733528124361,0.0017364,99740.0,99739.0,0.08]
[1733528124787,0.00190974,99740.0,99739.0,0.08]
[1733528125178,0.00190974,99740.0,99739.0,0.03]
[1733528125382,0.00190974,99740.0,99739.0,0.08]
[1733528125601,0.00186974,99740.0,99739.0,0.082]
[1733528125767,0.00186974,99740.0,99739.0,0.08]
[1733528128906,0.00186974,99740.0,99739.0,0.03]
[1733528130283,0.00286974,99740.0,99739.0,0.03]
[1733528131468,0.00186974,99740.0,99739.0,0.03]
[1733528131849,0.00386974,99740.0,99739.0,0.03]
[1733528132312,0.00186974,99740.0,99739.0,0.03]
[1733528133207,0.00186974,99740.0,99738.0,0.03]
[1733528133633,0.00186974,99740.0,99739.0,0.2107]
[1733528135459,0.00386974,99740.0,99739.0,0.2107]
[1733528135977,0.00186974,99740.0,99739.0,0.2107]
[1733528137689,0.02303768,99784.0,99739.0,0.2107]
[1733528137690,0.00039062,99770.0,99742.0,0.03]
[1733528137923,0.00057769,99750.0,99742.0,0.03]
[1733528138765,0.00057769,99750.0,99743.0,0.03]
[1733528139616,0.00157769,99750.0,99743.0,0.03]
[1733528139827,0.10002951,99749.0,99744.0,0.03]
[1733528140871,0.10002951,99749.0,99745.0,0.03]
[1733528141760,0.01441094,99750.0,99745.0,0.03]
[1733528141761,0.10002951,99746.0,99745.0,0.03]
[1733528142854,0.10002951,99746.0,99745.0,0.031]
[1733528143073,0.10802951,99746.0,99745.0,0.032]
[1733528144215,0.10802951,99746.0,99745.0,0.031]
[1733528144429,0.10802951,99746.0,99745.0,0.032]
[1733528144430,0.11635404,99746.0,99745.0,0.032]
[1733528144633,0.11635404,99746.0,99745.0,0.031]
[1733528144634,0.10837591,99746.0,99745.0,0.031]
[1733528144848,0.11637591,99746.0,99745.0,0.002]
[1733528147130,0.12159962,99746.0,99745.0,0.002]
[1733528147354,0.11945099,99746.0,99745.0,0.002]
[1733528147573,0.11945099,99746.0,99737.0,0.03]
[1733528147791,0.10002951,99739.0,99737.0,0.03]
[1733528148035,0.0073464,99738.0,99737.0,0.03]
[1733528148262,0.10737591,99738.0,99737.0,0.03]
[1733528148719,0.10737591,99738.0,99737.0,0.031]
[1733528149164,0.10737591,99738.0,99737.0,0.032]
[1733528149375,0.10737591,99738.0,99737.0,0.03]
[1733528150239,0.10002951,99738.0,99737.0,0.03]
[1733528150683,0.10702951,99738.0,99737.0,0.031]
[1733528150892,0.11437591,99738.0,99737.0,0.031]
[1733528151371,0.10838953,99738.0,99737.0,0.031]
[1733528151583,0.11438953,99738.0,99737.0,0.031]
[1733528151804,0.11438953,99738.0,99737.0,0.032]
[1733528151805,0.11538953,99738.0,99737.0,0.032]
[1733528152228,0.10838953,99738.0,99737.0,0.031]
[1733528152438,0.11438953,99738.0,99737.0,0.032]
[1733528152648,0.11338953,99738.0,99737.0,0.031]
[1733528152874,0.1386898,99738.0,99737.0,0.032]
[1733528153123,0.12691376,99738.0,99737.0,0.032]
[1733528153562,0.63225623,99738.0,99737.0,0.032]
[1733528153797,0.63225623,99738.0,99736.0,1.097082]
[1733528153798,0.71598732,99738.0,99736.0,0.59531878]
[1733528154020,0.11916557,99737.0,99736.0,0.59531878]
[1733528154223,0.10738953,99737.0,99736.0,0.59531878]
[1733528154460,0.10002951,99737.0,99736.0,0.59531878]
[1733528154685,0.10002951,99737.0,99736.0,0.67251878]
[1733528155174,0.10002951,99737.0,99736.0,0.67351878]
[1733528155384,0.10002951,99737.0,99736.0,0.67251878]
[1733528155808,0.10602951,99737.0,99736.0,0.67451878]
[1733528156011,0.10602951,99737.0,99736.0,0.67351878]
[1733528156229,0.006,99737.0,99736.0,0.67351878]
[1733528156453,0.006,99737.0,99736.0,0.67301878]
[1733528157212,0.002,99737.0,99736.0,0.72121878]
[1733528157418,0.002,99737.0,99736.0,0.92021878]
[1733528157419,0.004,99737.0,99736.0,0.92021878]
[1733528157826,0.006,99737.0,99736.0,0.92021878]
[1733528158247,0.008,99737.0,99736.0,0.92021878]
[1733528158455,0.004,99737.0,99736.0,0.92021878]
[1733528158655,0.00231049,99750.0,99737.0,0.15]
[1733528158941,0.10002951,99749.0,99737.0,0.15]
[1733528159672,0.10002951,99749.0,99741.0,0.05]
[1733528161338,0.10102951,99749.0,99741.0,0.05]
[1733528161537,0.10202951,99749.0,99741.0,0.05]
[1733528162609,0.00522227,99748.0,99741.0,0.05]
[1733528162809,0.10002951,99747.0,99740.0,0.05]
[1733528162962,0.10002951,99747.0,99736.0,0.72021878]
[1733528163379,0.10002951,99747.0,99736.0,0.64301878]
[1733528164150,0.10102951,99747.0,99736.0,0.59481878]
[1733528164799,0.10002951,99737.0,99736.0,0.59481878]
[1733528165257,0.10738822,99737.0,99736.0,0.59481878]
[1733528165672,0.10738822,99737.0,99736.0,0.09409005]
[1733528166106,0.92676285,99737.0,99736.0,0.09409005]
[1733528166317,0.92676285,99737.0,99736.0,0.01979014]
[1733528166318,0.93853679,99737.0,99736.0,0.01979014]
[1733528166542,1.11505765,99737.0,99736.0,0.02079014]
[1733528166775,0.76272859,99737.0,99736.0,0.02079014]
[1733528166984,0.76272859,99737.0,99700.0,0.0008667]
[1733528166985,0.023,99734.0,99700.0,0.0008667]
[1733528167192,0.10002951,99701.0,99700.0,0.0008667]
[1733528168350,0.10302951,99701.0,99700.0,0.0018667]
[1733528168574,0.10302951,99701.0,99700.0,0.00204004]
[1733528170019,0.10002951,99701.0,99700.0,0.00104004]
[1733528170192,0.10802951,99701.0,99700.0,0.00204004]
[1733528170618,0.10602951,99701.0,99700.0,0.00104004]
[1733528171085,0.10002951,99701.0,99700.0,0.00104004]
[1733528171529,0.12336166,99701.0,99700.0,0.00204004]
[1733528171752,0.12136166,99701.0,99700.0,0.00104004]
[1733528171970,0.11236166,99701.0,99700.0,0.00104004]
[1733528173254,0.11436166,99701.0,99700.0,0.00204004]
[1733528173679,0.11436166,99701.0,99700.0,0.00104004]
[1733528173892,0.11436166,99701.0,99700.0,0.00204004]
[1733528173893,0.11636166,99701.0,99700.0,0.00204004]
[1733528174121,0.12536166,99701.0,99700.0,0.00204004]
[1733528174548,0.11636166,99701.0,99700.0,0.00204004]
[1733528174966,0.12536166,99701.0,99700.0,0.00204004]
[1733528175987,0.11302951,99701.0,99700.0,0.00204004]
[1733528176559,0.10902951,99701.0,99700.0,0.00104004]
[1733528176964,0.10202951,99701.0,99700.0,0.00204004]
[1733528177127,0.10202951,99701.0,99700.0,0.00104004]
[1733528177330,0.11102951,99701.0,99700.0,0.00104004]
[1733528177589,0.11302951,99701.0,99700.0,0.00204004]
[1733528177816,0.10902951,99701.0,99700.0,0.00104004]
[1733528178008,0.10002951,99701.0,99700.0,0.00104004]
[1733528178212,0.10202951,99701.0,99700.0,0.00204004]
[1733528178940,0.10702951,99701.0,99700.0,0.00204004]
[1733528179348,0.10502951,99701.0,99700.0,0.00104004]
[1733528179502,0.10702951,99701.0,99700.0,0.00204004]
[1733528180138,0.10402951,99701.0,99700.0,0.00304004]
[1733528180527,0.10902951,99701.0,99700.0,0.00304004]
[1733528181141,0.10402951,99701.0,99700.0,0.00304004]
[1733528181607,0.10902951,99701.0,99700.0,0.00304004]
[1733528182053,0.10402951,99701.0,99700.0,0.00304004]
[1733528182281,0.10402951,99701.0,99700.0,0.08304004]
[1733528182507,0.10002951,99701.0,99700.0,0.08104004]
[1733528182964,0.1052542,99701.0,99700.0,0.08104004]
[1733528183181,0.1072542,99701.0,99700.0,0.08204004]
[1733528183659,0.1082542,99701.0,99700.0,0.08104004]
[1733528184153,0.1072542,99701.0,99700.0,0.08104004]
[1733528184364,0.1092542,99701.0,99700.0,0.08104004]
[1733528184575,0.1092542,99701.0,99700.0,0.18104004]
[1733528184576,0.00922469,99701.0,99700.0,0.18104004]
[1733528184806,0.1092542,99701.0,99700.0,0.08104004]
[1733528185300,0.10402951,99701.0,99700.0,0.08104004]
[1733528185539,0.10202951,99701.0,99700.0,0.08104004]
[1733528186738,0.002,99701.0,99700.0,0.08204004]
[1733528187662,0.002,99701.0,99700.0,0.08104004]
[1733528188122,0.004,99701.0,99700.0,0.08104004]
[1733528188581,0.01254372,99719.0,99700.0,0.08104004]
[1733528188823,0.10002951,99718.0,99700.0,0.08104004]
[1733528189051,0.002,99701.0,99700.0,0.08104004]
[1733528189531,0.10202951,99701.0,99700.0,0.08104004]
[1733528189769,0.10002951,99701.0,99700.0,0.00104004]
[1733528190002,0.10202951,99701.0,99700.0,0.00204004]
[1733528190247,0.10202951,99701.0,99700.0,0.00104004]
[1733528190721,0.10402951,99701.0,99700.0,0.00104004]
[1733528190978,0.11441272,99701.0,99700.0,0.00104004]
[1733528191438,0.11941272,99701.0,99700.0,0.00104004]
[1733528191930,0.11741272,99701.0,99700.0,0.00104004]
[1733528192157,0.12641272,99701.0,99700.0,0.00204004]
[1733528195351,0.13373043,99701.0,99700.0,0.00204004]
[1733528195573,0.12134722,99701.0,99700.0,0.00204004]
[1733528195801,0.11402951,99701.0,99700.0,0.00204004]
[1733528197237,0.12138482,99701.0,99700.0,0.00204004]
[1733528199886,0.12138768,99701.0,99700.0,0.00204004]
[1733528201000,0.11402951,99701.0,99700.0,0.00204004]
[1733528202341,0.11402951,99701.0,99700.0,0.08274004]
[1733528204350,0.11402951,99701.0,99700.0,0.12864004]
[1733528205491,0.11402951,99701.0,99700.0,0.00204004]
[1733528210501,0.12139342,99701.0,99700.0,0.00204004]
[1733528210717,0.11402951,99701.0,99700.0,0.00204004]
[1733528210898,0.12139342,99701.0,99700.0,0.00204004]
[1733528211146,0.11402951,99701.0,99700.0,0.00204004]
[1733528211372,0.12982275,99701.0,99700.0,0.00204004]
[1733528211799,0.13718666,99701.0,99700.0,0.00204004]
[1733528212686,0.12139342,99701.0,99700.0,0.00204004]
[1733528212936,0.11402951,99701.0,99700.0,0.00204004]
[1733528213600,0.014,99701.0,99700.0,0.00204004]
[1733528216201,0.014,99701.0,99700.0,0.12884004]
[1733528217098,0.009,99701.0,99700.0,0.22804004]
[1733528218212,0.001,99701.0,99700.0,0.22704004]
[1733528218450,0.005,99701.0,99700.0,0.22704004]
[1733528218673,0.004,99701.0,99700.0,0.22704004]
[1733528218946,0.03,99702.0,99701.0,0.05]
[1733528220088,0.032,99702.0,99701.0,0.05]
[1733528221442,0.032,99702.0,99701.0,0.1]
[1733528222372,0.002,99702.0,99701.0,0.1]
[1733528223531,0.002,99702.0,99701.0,0.102]
[1733528224463,0.01554404,99728.0,99701.0,0.102]
[1733528224688,0.10002951,99719.0,99708.0,0.05]
[1733528225355,0.0017374,99710.0,99708.0,0.05]
[1733528225800,0.0017374,99710.0,99708.0,0.051]
[1733528226027,0.0017374,99710.0,99708.0,0.001]
[1733528226028,0.10002951,99709.0,99708.0,0.001]
[1733528226919,0.10739746,99709.0,99708.0,0.001]
[1733528227339,0.10002951,99709.0,99700.0,0.00104004]
[1733528227817,0.10002951,99709.0,99708.0,0.001]
[1733528228049,0.10002951,99709.0,99700.0,0.00104004]
[1733528228277,0.10902951,99709.0,99708.0,0.001]
[1733528228491,0.11639722,99709.0,99708.0,0.001]
[1733528228713,0.11639722,99709.0,99700.0,0.00104004]
[1733528228714,0.10902951,99709.0,99700.0,0.00104004]
[1733528228925,0.12939722,99709.0,99700.0,0.00204004]
[1733528229116,0.12039722,99709.0,99700.0,0.00104004]
[1733528229653,0.12202951,99709.0,99708.0,0.001]
[1733528229867,0.12539819,99709.0,99708.0,0.001]
[1733528230301,0.11802951,99709.0,99708.0,0.001]
[1733528230504,0.12539802,99709.0,99708.0,0.001]
[1733528230974,0.10739802,99709.0,99700.0,0.00104004]
[1733528231182,0.00736851,99708.0,99700.0,0.00204004]
[1733528231413,0.10002951,99707.0,99700.0,0.00104004]
[1733528231836,0.05247623,99710.0,99700.0,0.00104004]
[1733528231837,0.01636851,99709.0,99700.0,0.00104004]
[1733528232051,0.004,99709.0,99708.0,0.1]
[1733528232265,0.004,99709.0,99708.0,0.2264]
[1733528232477,0.03696246,99710.0,99709.0,0.05]
[1733528233319,0.03696246,99710.0,99708.0,0.1264]
[1733528233512,0.03696246,99710.0,99701.0,0.05]
[1733528233721,0.03696246,99710.0,99700.0,0.00204004]
[1733528233722,0.03696246,99710.0,99704.0,0.05]
[1733528233929,0.10902951,99709.0,99704.0,0.05]
[1733528234626,0.11002951,99709.0,99704.0,0.05]
[1733528234833,0.10102951,99709.0,99704.0,0.05]
[1733528235045,0.10202951,99709.0,99704.0,0.05]
[1733528235945,0.10202951,99709.0,99703.0,0.05]
[1733528236180,0.10202951,99709.0,99704.0,0.05]
[1733528237485,0.03696246,99710.0,99704.0,0.05]
[1733528237687,0.002,99709.0,99704.0,0.05]
[1733528238356,0.004,99709.0,99705.0,0.05]
[1733528238573,0.03696246,99710.0,99709.0,0.1]
[1733528238784,0.03896246,99710.0,99709.0,0.1783]
[1733528239018,0.03896246,99710.0,99709.0,0.2264]
[1733528239263,0.0337374,99710.0,99709.0,0.3994]
[1733528239492,0.0337374,99710.0,99709.0,0.49942951]
[1733528239735,0.0017368,99730.0,99729.0,0.1764]
[1733528240384,0.0017368,99730.0,99729.0,0.2264]
[1733528241025,0.0027368,99730.0,99729.0,0.2264]
[1733528242341,0.0027368,99730.0,99729.0,0.2494]
[1733528242782,0.0027368,99730.0,99729.0,0.49942951]
[1733528243234,0.0017328,99750.0,99749.0,0.1]
[1733528243441,0.0017328,99750.0,99749.0,0.2264]
[1733528244517,0.00231049,99750.0,99749.0,0.2264]
[1733528245182,0.00231049,99750.0,99749.0,0.2504]
[1733528245414,0.00231049,99750.0,99749.0,0.50042951]
[1733528246330,0.00231049,99750.0,99749.0,0.49942951]
[1733528247622,0.00431049,99750.0,99749.0,0.51042951]
[1733528247842,0.00431049,99750.0,99749.0,0.50142951]
[1733528248071,0.00331049,99750.0,99749.0,0.50742951]
[1733528248318,0.00331049,99750.0,99749.0,0.50942951]
[1733528248319,0.00531049,99750.0,99749.0,0.50942951]
[1733528248527,0.00331049,99750.0,99749.0,0.50142951]
[1733528248981,0.00231049,99750.0,99749.0,0.49942951]
[1733528249211,0.00331049,99750.0,99749.0,0.50242951]
[1733528249869,0.00431049,99750.0,99749.0,0.51042951]
[1733528251494,0.00039062,99770.0,99769.0,0.2517]
[1733528251707,0.00056382,99770.0,99769.0,0.2287]
[1733528252600,0.00056382,99770.0,99769.0,0.2307]
[1733528253012,0.0017352,99810.0,99769.0,0.2307]
[1733528253230,0.00522068,99787.0,99778.0,0.05]
[1733528253452,0.15,99803.0,99778.0,0.05]
[1733528253669,0.15,99803.0,99769.0,0.1808732]
[1733528253670,0.00522058,99787.0,99779.0,0.05]
[1733528254143,0.10002951,99786.0,99771.0,0.05]
[1733528254361,0.10525085,99786.0,99773.0,0.05]
[1733528254806,0.00522134,99786.0,99785.0,0.1462]
[1733528255226,0.002,99787.0,99786.0,0.05]
[1733528255462,0.002,99787.0,99785.0,0.0962]
[1733528255463,6e-05,99805.0,99795.0,0.05]
[1733528255676,6e-05,99805.0,99785.0,0.0962]
[1733528255677,6e-05,99805.0,99796.0,0.05]
[1733528255889,0.0128272,99822.0,99796.0,0.05]
[1733528256101,0.10002951,99821.0,99796.0,0.05]
[1733528256760,0.004,99805.0,99796.0,0.05]
[1733528256973,0.01594979,99822.0,99801.0,0.05]
[1733528257188,0.10002951,99821.0,99801.0,0.05]
[1733528257426,0.002,99805.0,99803.0,0.05]
[1733528258057,0.006,99805.0,99803.0,0.05]
[1733528258272,0.00417317,99805.0,99803.0,0.05]
[1733528258736,0.00417317,99805.0,99804.0,0.05]
[1733528259585,0.00417317,99805.0,99803.0,0.05]
[1733528259811,0.10002951,99804.0,99801.0,0.001]
[1733528260051,0.10002951,99804.0,99796.0,0.05]
[1733528260253,0.09982951,99804.0,99796.0,0.05]
[1733528261186,0.10182951,99804.0,99796.0,0.05]
[1733528261402,0.006,99804.0,99803.0,0.1]
[1733528262508,0.006,99804.0,99723.0,0.08897947]
[1733528262509,0.006,99804.0,99801.0,0.05]
[1733528262719,0.006,99804.0,99796.0,0.05]
[1733528262927,0.002,99804.0,99798.0,0.05]
[1733528263397,0.002,99804.0,99794.0,0.05]
[1733528263622,0.002,99804.0,99784.0,0.05]
[1733528263623,0.10002951,99803.0,99784.0,0.05]
[1733528263867,0.10002951,99803.0,99789.0,0.05]
[1733528265013,0.10002951,99803.0,99748.0,0.05]
[1733528265014,0.007,99804.0,99802.0,0.05]
[1733528265224,0.007,99804.0,99799.0,0.05]
[1733528265225,0.10002951,99803.0,99799.0,0.05]
[1733528266322,0.10002951,99803.0,99793.0,0.05]
[1733528266549,0.10002951,99803.0,99796.0,0.05]
[1733528266550,0.10502951,99803.0,99796.0,0.05]
[1733528266990,0.10502951,99803.0,99793.0,0.05]
[1733528267198,0.10502951,99803.0,99789.0,0.05]
[1733528267435,0.10502951,99803.0,99784.0,0.001]
[1733528267436,0.10702951,99803.0,99790.0,0.05]
[1733528267883,0.11002951,99803.0,99788.0,0.05]
[1733528268115,0.11202951,99803.0,99790.0,0.05]
[1733528268991,0.10202951,99803.0,99790.0,0.05]
[1733528269246,0.10002951,99803.0,99790.0,0.05]
[1733528269481,0.10102951,99803.0,99790.0,0.05]
[1733528269715,0.10102951,99803.0,99780.0,0.05]
[1733528269716,0.10102951,99803.0,99787.0,0.05]
[1733528269920,0.10702951,99803.0,99790.0,0.051]
[1733528270448,0.11102951,99803.0,99790.0,0.051]
[1733528270689,0.11136896,99803.0,99790.0,0.05]
[1733528270910,0.10402951,99803.0,99790.0,0.05]
[1733528271123,0.11002951,99803.0,99790.0,0.05]
[1733528271573,0.00733945,99802.0,99790.0,0.05]
[1733528271786,0.10738601,99801.0,99790.0,0.05]
[1733528271961,0.10002951,99801.0,99790.0,0.05]
[1733528273090,0.003,99802.0,99801.0,0.1]
[1733528273329,0.00017317,99805.0,99801.0,0.1]
[1733528273330,0.00017317,99805.0,99802.0,0.05]
[1733528273554,0.00017317,99805.0,99804.0,0.05]
[1733528275380,0.10020268,99805.0,99804.0,0.05]
[1733528275813,0.10020268,99805.0,99800.0,0.05]
[1733528276075,0.10020268,99805.0,99791.0,0.1276]
[1733528276076,0.10002951,99804.0,99795.0,0.05]
[1733528276292,0.10002951,99804.0,99794.0,0.05]
[1733528276547,0.10002951,99804.0,99790.0,0.05]
[1733528276793,0.10002951,99804.0,99784.0,0.05]
[1733528277016,0.10002951,99804.0,99779.0,0.05]
[1733528277229,0.10002951,99804.0,99784.0,0.05]
[1733528277451,0.10002951,99804.0,99789.0,0.05]
[1733528277906,0.00522045,99803.0,99790.0,0.001]
[1733528278117,0.10002951,99802.0,99789.0,0.05]
[1733528278981,0.10002951,99802.0,99788.0,0.05]
[1733528279218,0.10002951,99802.0,99789.0,0.05]
[1733528279679,0.11481804,99802.0,99789.0,0.05]
[1733528280113,0.11981804,99802.0,99789.0,0.05]
[1733528280574,0.04248914,99801.0,99789.0,0.05]
[1733528280799,0.10002951,99800.0,99789.0,0.05]
[1733528281466,0.01178853,99799.0,99789.0,0.05]
[1733528281701,0.10002951,99798.0,99789.0,0.05]
[1733528282386,0.10002951,99798.0,99788.0,0.05]
[1733528283085,0.10002951,99798.0,99789.0,0.05]
[1733528283534,0.10602951,99798.0,99789.0,0.05]
[1733528283774,0.00737543,99797.0,99789.0,0.05]
[1733528283996,0.00737543,99796.0,99789.0,0.05]
[1733528284229,0.00737543,99795.0,99789.0,0.05]
[1733528284462,0.00737543,99794.0,99789.0,0.05]
[1733528284682,0.00737543,99793.0,99789.0,0.05]
[1733528285130,0.00940494,99798.0,99789.0,0.05]
[1733528285777,0.004,99798.0,99788.0,0.05]
[1733528286009,0.00522045,99803.0,99784.0,0.05]
[1733528286010,0.01179931,99801.0,99789.0,0.05]
[1733528286219,0.002,99793.0,99788.0,0.05]
[1733528286433,0.002,99793.0,99788.0,0.05017317]
[1733528287069,0.006,99798.0,99788.0,0.05017317]
[1733528287513,0.00502951,99802.0,99788.0,0.05017317]
[1733528287717,0.00522046,99807.0,99788.0,0.05017317]
[1733528287945,0.07469894,99814.0,99788.0,0.05017317]
[1733528288149,0.03073578,99813.0,99788.0,0.05017317]
[1733528288362,0.1378432,99814.0,99788.0,0.05017317]
[1733528288578,0.03073833,99813.0,99788.0,0.05017317]
[1733528288798,0.06858153,99814.0,99788.0,0.05017317]
[1733528289012,0.06653748,99815.0,99788.0,0.05117317]
[1733528289284,0.03073828,99814.0,99788.0,0.05017317]
[1733528289503,0.009,99814.0,99788.0,0.00117317]
[1733528289724,0.009,99814.0,99788.0,0.05117317]
[1733528289950,0.02903506,99813.0,99788.0,0.00017317]
[1733528290161,0.17399645,99824.0,99789.0,0.0805]
[1733528290371,0.005,99814.0,99789.0,0.0805]
[1733528290613,0.0485,99827.0,99792.0,0.05]
[1733528290829,0.0983392,99827.0,99792.0,0.05]
[1733528291049,0.0983392,99827.0,99793.0,0.05]
[1733528291273,0.47056643,99828.0,99795.0,0.05]
[1733528291274,0.40487243,99828.0,99795.0,0.05]
[1733528291504,0.31945325,99828.0,99802.0,0.05]
[1733528291728,0.24803292,99856.0,99809.0,0.05]
[1733528291920,0.040067,99847.0,99809.0,0.05]
[1733528292176,0.004,99814.0,99809.0,0.05]
[1733528292649,0.00302301,99842.0,99805.0,0.15]
[1733528292870,0.00302301,99842.0,99803.0,0.0757]
[1733528292871,0.0480764,99841.0,99803.0,0.0757]
[1733528293106,0.03074754,99840.0,99809.0,0.002]
[1733528293338,2.951e-05,99839.0,99809.0,0.001]
[1733528293566,0.01000127,99838.0,99803.0,0.0757]
[1733528293804,0.01198512,99837.0,99805.0,0.151]
[1733528294009,0.01800481,99837.0,99807.0,0.15]
[1733528294233,0.18512567,99859.0,99807.0,0.25002951]
[1733528294482,0.03074833,99858.0,99808.0,0.04267295]
[1733528294693,0.15654774,99862.0,99808.0,0.04267295]
[1733528294694,0.03074805,99861.0,99808.0,0.04267295]
[1733528294900,0.01306267,99854.0,99808.0,0.04267295]
[1733528295129,0.03074805,99853.0,99809.0,0.03818433]
[1733528295351,0.06780594,99852.0,99809.0,0.03818433]
[1733528295581,0.02574805,99851.0,99809.0,0.03818433]
[1733528295813,0.04205344,99850.0,99810.0,0.03649138]
[1733528296023,0.0008678,99840.0,99810.0,0.03649138]
[1733528296234,0.0884852,99827.0,99810.0,0.03649138]
[1733528296451,0.0884852,99828.0,99811.0,0.02875209]
[1733528297082,0.00737723,99827.0,99811.0,0.02875209]
[1733528297290,0.00737726,99826.0,99811.0,0.02875209]
[1733528297506,0.00737726,99826.0,99812.0,0.02797816]
[1733528297714,0.04789369,99837.0,99812.0,0.02797816]
[1733528297922,0.17702892,99836.0,99812.0,0.02797816]
[1733528298135,0.13277195,99833.0,99812.0,0.02797816]
[1733528298345,0.13277195,99833.0,99808.0,0.10002951]
[1733528298556,0.13277195,99833.0,99811.0,0.001]
[1733528298783,0.13277195,99831.0,99808.0,0.10002951]
[1733528299005,0.13277195,99832.0,99813.0,0.2757]
[1733528299208,0.0260679,99838.0,99813.0,0.2757]
[1733528299209,0.13277195,99836.0,99815.0,0.2]
[1733528299449,0.01426401,99838.0,99816.0,0.10002951]
[1733528299680,0.01426401,99838.0,99817.0,0.04267295]
[1733528299882,0.01426401,99838.0,99818.0,0.10002951]
[1733528300103,0.04790376,99845.0,99818.0,0.10002951]
[1733528300332,0.04790376,99846.0,99821.0,0.0757]
[1733528300542,0.17702892,99854.0,99822.0,0.10002951]
[1733528300772,0.17702892,99854.0,99823.0,0.02757295]
[1733528300773,0.07702892,99851.0,99823.0,0.02757295]
[1733528300981,0.04783366,99854.0,99824.0,0.10002951]
[1733528301213,0.00057747,99851.0,99824.0,0.10002951]
[1733528301427,0.00357972,99851.0,99825.0,0.02533025]
[1733528301666,0.00357972,99851.0,99826.0,0.10002951]
[1733528301891,0.0017,99855.0,99823.0,0.001]
[1733528302114,0.22125135,99843.0,99823.0,0.001]
[1733528302332,0.0017,99855.0,99798.0,0.0453]
[1733528302333,0.22125135,99834.0,99808.0,0.0757]
[1733528302536,0.00294912,99851.0,99824.0,0.001]
[1733528302765,0.00294912,99851.0,99809.0,0.11759951]
[1733528302986,0.01180429,99864.0,99809.0,0.11759951]
[1733528302987,0.01180429,99863.0,99810.0,0.02432995]